fUSD/lending_fUSD_20260414
["ID","MTS","AMOUNT","RATE_DAILY","PERIOD"]
[420461607,1776102031759,-5000.01,0.00013724,2]
[420461608,1776102093726,-506.0,0.000135,2]
[420461609,1776102093813,-326.0,0.000135,2]
[420461610,1776102093968,-1558.5607,0.00013624,2]
[420461611,1776102094212,-5218.8886,0.00013624,2]
[420461612,1776102096427,-300.0,0.00013723,2]
[420461613,1776102096474,-308.0,0.00013724,3]
[420461614,1776102096539,-8784.01,0.00013724,2]
[420461615,1776102102791,-10000.01,0.00013724,2]
[420461616,1776102266270,-2938.38211016,0.00012975,2]
[420461617,1776102269196,-5000.01,0.00012975,2]
[420461618,1776102271676,-1574.07211016,0.00012975,2]
[420461619,1776102271708,-1851.86577968,0.00012975,2]
[420461620,1776102303275,155.97,0.0001,2]
[420461621,1776102305099,195.0,0.00011,2]
[420461622,1776102305348,195.0,0.00011507,2]
[420461623,1776102305924,4454.04,0.00011,2]
[420461624,1776102305969,545.96,0.00011,2]
[420461625,1776102308157,165.12276016,0.00011,2]
[420461626,1776102318499,-292.0,0.00012975,3]
[420461627,1776102371243,278.0,0.00012975,2]
[420461628,1776102379197,152.0,0.00010798,7]
[420461629,1776102395692,500.0,0.00012726,2]
[420461630,1776102428478,264.0,0.00012975,2]
[420461631,1776102441830,218.26,0.00012745,2]
[420461632,1776102462093,3003.75,0.00012915,2]
[420461633,1776102521848,150.0,0.0001,2]
[420461634,1776102549358,1474.98680767,0.00011322,2]
[420461645,1776102633252,-266.38894956,0.00011322,2]
[420461646,1776102633265,-289.57089787,0.00011322,2]
[420461647,1776102633286,-310.42910213,0.00011322,2]
[420461648,1776102633302,-149.01319233,0.00011322,2]
[420461649,1776102633312,-600.0,0.00012454,2]
[420461650,1776102633323,-154.6109889,0.00012454,2]
[420461651,1776102633337,-380.82442614,0.00012454,2]
[420461652,1776102633347,-300.0,0.00012454,2]
[420461653,1776102633359,-587.12578581,0.00012915,2]
[420461654,1776102633373,-600.0,0.00012915,2]
[420461655,1776102633397,-330.34925995,0.00012915,2]
[420461656,1776102633409,-321.43042392,0.00012915,2]
[420461657,1776102633421,-600.0,0.00012944,2]
[420461658,1776102633439,-251.0,0.00012975,3]
[420461659,1776102633450,-250.0,0.00013,2]
[420461660,1776102633461,-195.0,0.00013014,2]
[420461661,1776102633493,-321.43042392,0.00013053,2]
[420461662,1776102633505,-166.66,0.00013114,2]
[420461663,1776102633519,-273.93068376,0.00013287,2]
[420461664,1776102633541,-321.43042392,0.00013415,2]
[420461665,1776102633553,-334.72031005,0.00013415,2]
[420461666,1776102633563,-528.02214014,0.00013415,2]
[420461667,1776102633584,-1200.0,0.00013421,2]
[420461668,1776102633593,-300.0,0.00013422,2]
[420461669,1776102633603,-506.0,0.000135,2]
[420461670,1776102633629,-377332.3644,0.00013524,2]
[420461671,1776102633638,-1446.08821205,0.00013527,2]
[420461672,1776102633649,-1456.45444418,0.00013527,2]
[420461673,1776102633666,-166.66,0.00013547,2]
[420461674,1776102633689,-528.97584949,0.00013588,2]
[420461675,1776102633699,-1051.92262617,0.00013614,2]
[420461676,1776102633709,-150.0,0.00013623,2]
[420461677,1776102633731,-4153.9209,0.00013624,2]
[420461679,1776102633743,-32882.4892,0.00013624,2]
[420461680,1776102633752,-1070160.02458329,0.00013624,2]
[420461683,1776102633793,-187248.22286502,0.00013624,2]
[420461685,1776102633806,-204981.51118315,0.00013624,2]
[420461687,1776102633838,-37610.24136854,0.00013624,2]
[420461688,1776102633850,-152.0,0.00013627,7]
[420461689,1776102633863,-578.20924308,0.00013641,2]
[420461690,1776102633890,-209.40437684,0.00013641,2]
[420461691,1776102633899,-500.0,0.00013641,2]
[420461692,1776102633921,-3638.3346,0.00013644,2]
[420461693,1776102633933,-485.1,0.00013644,2]
[420461694,1776102633943,-410.64,0.00013659,2]
[420461695,1776102633966,-150.0,0.0001366,2]
[420461696,1776102633998,-150.0,0.0001366,2]
[420461697,1776102634027,-150.0,0.0001366,2]
[420461698,1776102634038,-150.0,0.0001366,2]
[420461699,1776102634047,-150.0,0.0001366,2]
[420461700,1776102634064,-150.0,0.0001366,2]
[420461701,1776102634097,-150.0,0.0001366,2]
[420461702,1776102634107,-150.23051104,0.0001366,2]
[420461703,1776102634129,-150.0,0.0001366,2]
[420461704,1776102634138,-150.32300286,0.0001366,2]
[420461705,1776102634147,-150.0,0.0001366,2]
[420461706,1776102634168,-252.25829837,0.0001366,2]
[420461707,1776102634177,-201.02120866,0.0001366,2]
[420461708,1776102634186,-150.0,0.0001366,2]
[420461709,1776102634203,-150.0,0.0001366,2]
[420461710,1776102634212,-500.0,0.00013673,2]
[420461711,1776102634223,-500.0,0.00013673,2]
[420461712,1776102634234,-500.0,0.00013673,2]
[420461713,1776102634244,-500.0,0.00013673,2]
[420461714,1776102634255,-500.0,0.00013696,2]
[420461715,1776102634265,-200.0,0.00013699,2]
[420461716,1776102634275,-500.0,0.00013718,2]
[420461717,1776102634285,-722.0735921,0.00013718,2]
[420461718,1776102634295,-1280.31481984,0.00013718,2]
[420461719,1776102634306,-500.0,0.00013724,2]
[420461720,1776102634316,-3020.72373908,0.00013724,2]
[420461721,1776102634325,-353.16596482,0.00013738,2]
[420461722,1776102634336,-500.0,0.00013751,2]
[420461723,1776102634349,-500.0,0.00013757,2]
[420461724,1776102634359,-33057.3911,0.00013757,2]
[420461725,1776102634368,-39912.81289577,0.00013757,2]
[420461726,1776102634379,-160.0,0.00013785,7]
[420461727,1776102634392,-981.383674,0.00013785,7]
[420461728,1776102634401,-1802.767349,0.00013785,7]
[420461729,1776102634411,-258.408153,0.00013785,7]
[420461730,1776102634422,-282.267614,0.00013785,7]
[420461731,1776102634431,-160.0,0.00013785,7]
[420461732,1776102634449,-901.418278,0.00013785,7]
[420461733,1776102634458,-1642.836557,0.00013785,7]
[420461734,1776102634466,-244.918702,0.00013796,2]
[420461735,1776102634478,-700.0,0.000138,5]
[420461736,1776102634495,-500.0,0.00013806,2]
[420461737,1776102634504,-150.0,0.00013829,2]
[420461738,1776102634519,-786.52,0.00013836,2]
[420461739,1776102634536,-986.6,0.00013837,2]
[420461740,1776102634546,-9552.16786547,0.00013849,2]
[420461741,1776102634562,-151.0,0.00013849,2]
[420461742,1776102634578,-209.40437684,0.00013849,2]
[420461743,1776102634591,-174.61919141,0.00013849,2]
[420461744,1776102634606,-10000.0,0.00013849,2]
[420461745,1776102634620,-10000.0,0.00013849,2]
[420461746,1776102634635,-5470.6730421,0.00013849,2]
[420461747,1776102634651,-235.75327194,0.00013849,2]
[420461748,1776102634685,-244.476143,0.00013849,2]
[420461749,1776102634703,-253.52176029,0.00013849,2]
[420461750,1776102634731,-262.90206542,0.00013849,2]
[420461751,1776102634747,-272.62944185,0.00013849,2]
[420461752,1776102634774,-282.71673119,0.00013849,2]
[420461753,1776102634786,-318.00058631,0.00013849,2]
[420461754,1776102634811,-693.3919763,0.00013849,2]
[420461755,1776102634826,-190.68667205,0.00013856,2]
[420461756,1776102634846,-756.95,0.00013856,2]
[420461757,1776102634865,-500.0,0.00013856,2]
[420461758,1776102634896,-500.0,0.00013856,2]
[420461759,1776102634922,-500.0,0.00013856,2]
[420461760,1776102634935,-313.60789351,0.00013856,2]
[420461761,1776102634946,-966.31,0.00013856,2]
[420461762,1776102634960,-500.0,0.00013856,2]
[420461763,1776102634969,-590.65,0.00013856,2]
[420461764,1776102634984,-608.36861463,0.00013856,2]
[420461765,1776102635001,-214.19309188,0.00013856,2]
[420461766,1776102635014,-500.0,0.00013856,2]
[420461767,1776102635029,-1533.98,0.00013856,2]
[420461768,1776102635041,-2500.0,0.00013856,2]
[420461769,1776102635058,-607.48740169,0.00013856,2]
[420461770,1776102635072,-7775.992,0.00013857,2]
[420461771,1776102635085,-393.95,0.00013857,2]
[420461772,1776102635101,-69452.96718619,0.00013857,2]
[420461773,1776102635110,-5000.0,0.00013857,2]
[420461774,1776102635126,-500.0,0.00013861,2]
[420461775,1776102635139,-218.971241,0.00013876,7]
[420461776,1776102635152,-207.272513,0.00013876,2]
[420461777,1776102635163,-462.91,0.0001389,2]
[420461778,1776102635179,-1500.0,0.000139,5]
[420461779,1776102635194,-151.0,0.00013904,2]
[420461780,1776102635207,-1391.47232506,0.00013906,2]
[420461781,1776102635218,-500.0,0.00013916,2]
[420461782,1776102635230,-39912.81289574,0.00013917,2]
[420461783,1776102635258,-500.0,0.00013948,2]
[420461784,1776102635292,-500.0,0.00013948,2]
[420461785,1776102635313,-1102.6,0.00013948,2]
[420461786,1776102635328,-500.0,0.00013948,2]
[420461787,1776102635356,-500.0,0.00013948,2]
[420461788,1776102635366,-200.0,0.00013949,2]
[420461789,1776102635390,-200.0,0.00013949,2]
[420461790,1776102635415,-500.0,0.00013949,2]
[420461791,1776102635424,-151.0,0.00013949,2]
[420461792,1776102635434,-1428.38747117,0.00013949,2]
[420461793,1776102635449,-721.12765535,0.00013949,2]
[420461794,1776102635460,-500.0,0.00013949,2]
[420461795,1776102635469,-151.0,0.00013949,2]
[420461796,1776102635479,-500.0,0.00013949,2]
[420461797,1776102635491,-151.0,0.00013949,2]
[420461798,1776102635501,-500.0,0.00013949,2]
[420461799,1776102635514,-151.0,0.00013949,2]
[420461800,1776102635525,-500.0,0.00013949,2]
[420461801,1776102635534,-151.0,0.00013949,2]
[420461802,1776102635547,-500.0,0.00013949,2]
[420461803,1776102635556,-151.0,0.00013949,2]
[420461804,1776102635565,-500.0,0.00013949,2]
[420461805,1776102635576,-151.0,0.00013949,2]
[420461806,1776102635593,-500.0,0.00013949,2]
[420461807,1776102635602,-151.0,0.00013949,2]
[420461808,1776102635612,-500.0,0.00013949,2]
[420461809,1776102635633,-151.0,0.00013949,2]
[420461810,1776102635642,-500.0,0.00013949,2]
[420461811,1776102635653,-151.0,0.00013949,2]
[420461812,1776102635674,-440.73913823,0.00013949,2]
[420461813,1776102635689,-59.26086177,0.00013949,2]
[420461814,1776102635720,-151.0,0.00013949,2]
[420461815,1776102635729,-500.0,0.00013949,2]
[420461816,1776102635768,-500.0,0.00013949,2]
[420461817,1776102635781,-44.157225,0.00013949,2]
[420461818,1776102635811,-455.842775,0.00013949,2]
[420461819,1776102635824,-500.0,0.00013949,2]
[420461820,1776102635836,-500.0,0.00013949,2]
[420461821,1776102635847,-500.0,0.00013949,2]
[420461822,1776102635857,-478.94904597,0.00013949,2]
[420461823,1776102635904,-21.05095403,0.00013949,2]
[420461824,1776102635918,-500.0,0.00013949,2]
[420461825,1776102635931,-473.34311587,0.00013949,2]
[420461826,1776102635961,-26.65688413,0.00013949,2]
[420461827,1776102635982,-743.50770149,0.00013949,2]
[420461828,1776102635994,-201.74917427,0.00013949,2]
[420461829,1776102636016,-298.25082573,0.00013949,2]
[420461830,1776102636029,-500.0,0.00013949,2]
[420461831,1776102636042,-500.0,0.00013949,2]
[420461832,1776102636054,-178.08835478,0.00013949,2]
[420461833,1776102636069,-500.0,0.00013949,2]
[420461834,1776102636080,-500.0,0.00013949,2]
[420461835,1776102636097,-500.0,0.00013949,2]
[420461836,1776102636109,-500.0,0.00013949,2]
[420461837,1776102636118,-500.0,0.00013949,2]
[420461838,1776102636129,-500.0,0.00013949,2]
[420461839,1776102636148,-500.0,0.00013949,2]
[420461840,1776102636158,-500.0,0.00013949,2]
[420461841,1776102636176,-500.0,0.00013949,2]
[420461842,1776102636187,-150.88881949,0.00013949,2]
[420461843,1776102636200,-0.11118051,0.00013949,2]
[420461844,1776102636211,-500.0,0.00013949,2]
[420461845,1776102636224,-500.0,0.00013949,2]
[420461846,1776102636236,-151.0,0.00013949,2]
[420461847,1776102636245,-151.0,0.00013949,2]
[420461848,1776102636258,-151.0,0.00013949,2]
[420461849,1776102636274,-151.0,0.00013949,2]
[420461850,1776102636285,-151.0,0.00013949,2]
[420461851,1776102636297,-151.0,0.00013949,2]
[420461852,1776102636309,-151.0,0.00013949,2]
[420461853,1776102636321,-151.0,0.00013949,2]
[420461854,1776102636334,-151.0,0.00013949,2]
[420461855,1776102636344,-151.0,0.00013949,2]
[420461856,1776102636359,-132.52123648,0.00013949,2]
[420461857,1776102636381,-18.47876352,0.00013949,2]
[420461858,1776102636394,-151.0,0.00013949,2]
[420461859,1776102636406,-151.0,0.00013949,2]
[420461860,1776102636419,-151.0,0.00013949,2]
[420461861,1776102636431,-151.0,0.00013949,2]
[420461862,1776102636445,-94.29198938,0.00013949,2]
[420461863,1776102636469,-56.70801062,0.00013949,2]
[420461864,1776102636479,-151.0,0.00013949,2]
[420461865,1776102636492,-151.0,0.00013949,2]
[420461866,1776102636515,-151.0,0.00013949,2]
[420461867,1776102636529,-575.97863417,0.00013949,2]
[420461868,1776102636538,-151.0,0.00013949,2]
[420461869,1776102636564,-151.0,0.00013949,2]
[420461870,1776102636573,-279.9045709,0.00013949,2]
[420461871,1776102636594,-151.0,0.00013954,2]
[420461872,1776102636607,-767.4608468,0.00013956,2]
[420461873,1776102636619,-232.5391532,0.00013956,2]
[420461874,1776102636640,-927.40441751,0.00013956,2]
[420461875,1776102636655,-72.59558249,0.00013956,2]
[420461876,1776102636669,-912.60816537,0.00013956,2]
[420461877,1776102636839,-372.52183463,0.00013956,2]
[420461878,1776102636857,-756.95,0.00013956,2]
[420461879,1776102636876,-756.95,0.00013956,2]
[420461880,1776102636889,-756.95,0.00013956,2]
[420461881,1776102636909,-500.0,0.00013956,2]
[420461882,1776102636938,-500.0,0.00013956,2]
[420461883,1776102636969,-500.0,0.00013956,2]
[420461884,1776102636979,-500.0,0.00013956,2]
[420461885,1776102637294,-356.62816537,0.00013956,2]
[420461889,1776102638993,-143.37183463,0.00013956,2]
[420461891,1776102639007,-500.0,0.00013956,2]
[420461893,1776102639027,-277.90469602,0.00013956,2]
[420461895,1776102639056,-222.09530398,0.00013956,2]
[420461897,1776102639067,-500.0,0.00013956,2]
[420461899,1776102639084,-500.0,0.00013956,2]
[420461901,1776102639098,-500.0,0.00013956,2]
[420461903,1776102639108,-966.31,0.00013956,2]
[420461905,1776102639123,-966.31,0.00013956,2]
[420461907,1776102639132,-966.31,0.00013956,2]
[420461909,1776102639148,-500.0,0.00013956,2]
[420461911,1776102639160,-500.0,0.00013956,2]
[420461913,1776102639170,-500.0,0.00013956,2]
[420461915,1776102639184,-590.65,0.00013956,2]
[420461917,1776102639193,-590.65,0.00013956,2]
[420461919,1776102639211,-590.65,0.00013956,2]
[420461921,1776102639221,-1102.6,0.00013956,2]
[420461923,1776102639235,-1102.6,0.00013956,2]
[420461925,1776102639246,-500.0,0.00013956,2]
[420461927,1776102639256,-500.0,0.00013956,2]
[420461929,1776102639266,-731.4,0.00013956,2]
[420461931,1776102639279,-731.4,0.00013956,2]
[420461933,1776102639289,-731.4,0.00013956,2]
[420461935,1776102639301,-500.0,0.00013956,2]
[420461937,1776102639313,-500.0,0.00013956,2]
[420461938,1776102639331,-500.0,0.00013956,2]
[420461939,1776102639342,-500.0,0.00013956,2]
[420461940,1776102639355,-500.0,0.00013956,2]
[420461941,1776102639383,-1533.98,0.00013956,2]
[420461942,1776102639396,-1533.98,0.00013956,2]
[420461943,1776102639428,-1533.98,0.00013956,2]
[420461944,1776102639448,-2000.0,0.00013957,2]
[420461945,1776102639462,-151.0,0.00013959,2]
[420461946,1776102639475,-150.0,0.00013964,2]
[420461947,1776102639486,-150.0,0.00013964,2]
[420461948,1776102639507,-46583.47209597,0.0001397,2]
[420461954,1776102640866,-328.2214,0.00013757,2]
[420461955,1776102640876,-26878.68901749,0.0001397,2]
[420461956,1776102640891,-500.0,0.00013971,2]
[420461957,1776102640901,-500.0,0.00013973,2]
[420461958,1776102640910,-500.0,0.00013973,2]
[420461959,1776102640924,-500.58014116,0.00013973,2]
[420461960,1776102640938,-500.0,0.00013973,2]
[420461961,1776102640948,-394.37067958,0.00013973,2]
[420461962,1776102640960,-500.0,0.00013973,2]
[420461963,1776102640978,-500.0,0.00013973,2]
[420461964,1776102640994,-500.0,0.00013973,2]
[420461965,1776102641013,-447.00436382,0.00013973,2]
[420461966,1776102641024,-500.0,0.00013973,2]
[420461967,1776102641034,-500.0,0.00013973,2]
[420461968,1776102641051,-500.23216772,0.00013973,2]
[420461969,1776102641061,-500.0,0.00013973,2]
[420461970,1776102641071,-500.0,0.00013973,2]
[420461971,1776102641091,-166.66,0.00013973,2]
[420461972,1776102641102,-166.66,0.0001398,2]
[420461973,1776102641112,-1070.68926431,0.00013985,2]
[420461974,1776102641135,-234.75060229,0.00013985,2]
[420461975,1776102641145,-500.0,0.00013992,2]
[420461976,1776102641155,-150.0,0.00013998,2]
[420461977,1776102641183,-500.0,0.00014006,2]
[420461978,1776102641194,-500.0,0.00014006,2]
[420461980,1776102641216,-1102.6,0.00014006,2]
[420461982,1776102641226,-500.0,0.00014006,2]
[420461983,1776102641251,-500.0,0.00014006,2]
[420461984,1776102641262,-69452.96718617,0.00014006,2]
[420461985,1776102641296,-151.0,0.00014014,2]
[420461986,1776102641307,-160.0,0.00014019,2]
[420461987,1776102641341,-201.127993,0.00014019,2]
[420461988,1776102641353,-242.255986,0.00014019,2]
[420461989,1776102641367,-500.0,0.00014026,2]
[420461990,1776102641391,-150.0,0.0001404,2]
[420461991,1776102641405,-33132.59881723,0.00014061,2]
[420461992,1776102641449,-179.248,0.00014065,2]
[420461993,1776102641459,-500.0,0.00014066,2]
[420461994,1776102641499,-500.0,0.00014066,2]
[420461995,1776102641509,-500.0,0.00014066,2]
[420461996,1776102641521,-500.0,0.00014066,2]
[420461997,1776102641571,-500.0,0.00014066,2]
[420461998,1776102641590,-500.0,0.00014066,2]
[420461999,1776102641605,-500.0,0.00014066,2]
[420462000,1776102641621,-500.0,0.00014066,2]
[420462001,1776102641641,-500.0,0.00014066,2]
[420462002,1776102641651,-500.0,0.00014066,2]
[420462003,1776102641663,-528.07894368,0.00014066,2]
[420462004,1776102641672,-500.0,0.00014066,2]
[420462005,1776102641706,-500.0,0.00014066,2]
[420462006,1776102641716,-500.0,0.00014066,2]
[420462007,1776102641731,-500.0,0.00014066,2]
[420462008,1776102641745,-340.04008098,0.00014066,2]
[420462009,1776102641755,-500.0,0.00014066,2]
[420462010,1776102641768,-500.0,0.00014066,2]
[420462011,1776102641785,-500.0,0.00014066,2]
[420462012,1776102641794,-500.0,0.00014066,2]
[420462013,1776102641805,-500.0,0.00014066,2]
[420462014,1776102641822,-500.0,0.00014066,2]
[420462015,1776102641836,-500.0,0.00014066,2]
[420462016,1776102641846,-500.0,0.00014066,2]
[420462017,1776102641862,-529.34678297,0.00014066,2]
[420462018,1776102641876,-500.0,0.00014066,2]
[420462019,1776102641885,-500.0,0.00014066,2]
[420462020,1776102641906,-500.0,0.00014066,2]
[420462021,1776102641916,-500.0,0.00014066,2]
[420462022,1776102641926,-500.0,0.00014066,2]
[420462023,1776102641940,-500.0,0.00014066,2]
[420462024,1776102641954,-500.0,0.00014066,2]
[420462025,1776102641964,-500.0,0.00014066,2]
[420462026,1776102641975,-500.0,0.00014066,2]
[420462027,1776102641988,-500.0,0.00014066,2]
[420462028,1776102642014,-500.0,0.00014066,2]
[420462029,1776102642026,-500.0,0.00014066,2]
[420462030,1776102642041,-500.0,0.00014066,2]
[420462031,1776102642062,-500.0,0.00014066,2]
[420462032,1776102642073,-500.0,0.00014066,2]
[420462033,1776102642090,-500.0,0.00014066,2]
[420462034,1776102642110,-500.0,0.00014066,2]
[420462035,1776102642123,-500.0,0.00014066,2]
[420462036,1776102642133,-500.0,0.00014066,2]
[420462037,1776102642160,-500.0,0.00014066,2]
[420462038,1776102642172,-944.0,0.00014066,2]
[420462039,1776102642197,-944.0,0.00014066,2]
[420462040,1776102642210,-944.0,0.00014066,2]
[420462041,1776102642244,-944.0,0.00014066,2]
[420462042,1776102642261,-944.0,0.00014066,2]
[420462043,1776102642290,-944.0,0.00014066,2]
[420462044,1776102642302,-500.0,0.00014066,2]
[420462045,1776102642340,-500.0,0.00014066,2]
[420462046,1776102642361,-500.0,0.00014066,2]
[420462047,1776102642399,-500.0,0.00014066,2]
[420462048,1776102642438,-500.0,0.00014066,2]
[420462049,1776102642461,-500.0,0.00014066,2]
[420462050,1776102642471,-151.0,0.00014069,2]
[420462051,1776102642489,-39912.81289574,0.00014078,2]
[420462052,1776102642500,-500.0,0.00014081,2]
[420462053,1776102642509,-150.0,0.000141,2]
[420462054,1776102642523,-756.95,0.00014102,2]
[420462055,1776102642547,-500.0,0.00014102,2]
[420462056,1776102642556,-500.0,0.00014102,2]
[420462057,1776102642566,-966.31,0.00014102,2]
[420462058,1776102642590,-500.0,0.00014102,2]
[420462059,1776102642603,-590.65,0.00014102,2]
[420462060,1776102642628,-1533.98,0.00014102,2]
[420462061,1776102642641,-500.0,0.00014103,2]
[420462062,1776102642661,-500.0,0.00014103,2]
[420462063,1776102642679,-500.0,0.00014103,2]
[420462064,1776102642699,-500.0,0.00014103,2]
[420462065,1776102642721,-500.0,0.00014103,2]
[420462066,1776102642739,-944.0,0.00014103,2]
[420462067,1776102642750,-500.0,0.00014103,2]
[420462068,1776102642765,-1000.0,0.00014103,2]
[420462069,1776102642783,-1329.97914519,0.00014104,2]
[420462070,1776102642795,-200.0,0.00014104,2]
[420462071,1776102642812,-569.57739664,0.00014104,2]
[420462072,1776102642824,-212.27104579,0.00014104,2]
[420462073,1776102642835,-166.66,0.0001411,2]
[420462074,1776102642849,-786.52,0.0001411,2]
[420462075,1776102642862,-986.6,0.00014111,2]
[420462076,1776102642873,-151.0,0.00014124,2]
[420462077,1776102642883,-500.0,0.00014136,2]
[420462078,1776102642901,-1360.43789482,0.00014148,2]
[420462079,1776102642912,-500.0,0.00014154,2]
[420462080,1776102642923,-500.0,0.00014154,2]
[420462081,1776102642933,-1102.6,0.00014154,2]
[420462082,1776102642948,-500.0,0.00014154,2]
[420462084,1776102642959,-731.4,0.00014154,2]
[420462085,1776102642969,-500.0,0.00014154,2]
[420462086,1776102642981,-69452.96718617,0.00014155,2]
[420462087,1776102642994,-19263.08505487,0.00014159,2]
[420462089,1776102643010,-150.0,0.00014166,2]
[420462091,1776102643025,-151.0,0.00014179,2]
[420462093,1776102643035,-217.15233878,0.00014189,2]
[420462094,1776102643063,-500.0,0.00014191,2]
[420462095,1776102643075,-1699.17829694,0.000142,2]
[420462096,1776102643100,-195.0,0.00014207,2]
[420462097,1776102643110,-600.0,0.00014207,2]
[420462098,1776102643134,-5000.0,0.00014207,2]
[420462099,1776102643161,-250.0,0.00014207,2]
[420462101,1776102643178,-500.3668536,0.00014221,2]
[420462103,1776102643205,-1285.13,0.0001423,2]
[420462104,1776102643223,-151.0,0.00014234,2]
[420462105,1776102643245,-39912.81289574,0.00014238,2]
[420462106,1776102643273,-1391.47232502,0.00014238,2]
[420462107,1776102643284,-200.0,0.00014245,2]
[420462108,1776102643294,-166.66,0.00014247,2]
[420462109,1776102643322,-500.0,0.00014265,2]
[420462110,1776102643331,-150.0,0.00014267,2]
[420462111,1776102643371,-2928.0508795,0.0001427,2]
[420462112,1776102643382,-151.0,0.00014289,2]
[420462113,1776102643398,-2939.53899155,0.000143,2]
[420462114,1776102643419,-7782.15709721,0.000143,2]
[420462115,1776102643435,-282.02646067,0.000143,2]
[420462116,1776102643466,-490.78223474,0.000143,2]
[420462117,1776102644030,-459.44163907,0.000143,2]
[420462118,1776102644043,-756.95,0.00014304,2]
[420462119,1776102644057,-500.0,0.00014304,2]
[420462120,1776102644067,-500.0,0.00014304,2]
[420462121,1776102644078,-966.31,0.00014304,2]
[420462122,1776102644090,-500.0,0.00014304,2]
[420462123,1776102644103,-150.0,0.00014304,2]
[420462124,1776102644112,-590.65,0.00014304,2]
[420462125,1776102644125,-1533.98,0.00014304,2]
[420462126,1776102644141,-69452.96718617,0.00014305,2]
[420462127,1776102644156,-195.0,0.00014315,2]
[420462128,1776102644167,-195.0,0.00014316,2]
[420462129,1776102644184,-250.0,0.00014316,2]
[420462130,1776102644194,-150.0,0.00014335,2]
[420462131,1776102644205,-151.0,0.00014344,2]
[420462132,1776102644219,-1456.45444416,0.00014364,2]
[420462133,1776102644244,-233.69297781,0.00014377,5]
[420462134,1776102644254,-500.0,0.00014383,2]
[420462135,1776102644267,-500.0,0.00014383,2]
[420462136,1776102644285,-1102.6,0.00014383,2]
[420462137,1776102644295,-500.0,0.00014383,2]
[420462138,1776102644305,-500.0,0.00014383,2]
[420462139,1776102644318,-166.66,0.00014384,2]
[420462140,1776102644329,-1060.47,0.00014384,2]
[420462141,1776102644341,-786.52,0.00014384,2]
[420462142,1776102644354,-986.6,0.00014385,2]
[420462143,1776102644365,-150.0,0.00014386,2]
[420462144,1776102644374,-200.0,0.00014387,2]
[420462145,1776102644386,-217.15233878,0.00014397,2]
[420462146,1776102644402,-181.08010149,0.00014397,2]
[420462147,1776102644411,-719.04747942,0.00014397,2]
[420462148,1776102644420,-39912.81289574,0.00014398,2]
[420462149,1776102644433,-151.0,0.00014399,2]
[420462150,1776102644462,-974.8011,0.000144,2]
[420462151,1776102644472,-2300.0,0.000144,5]
[420462152,1776102644492,-166.66,0.00014413,2]
[420462153,1776102644506,-150.0,0.00014419,2]
[420462154,1776102644515,-150.0,0.00014419,2]
[420462155,1776102644539,-69452.96718617,0.00014454,2]
[420462156,1776102644554,-1338.250465,0.00014474,7]
[420462157,1776102644565,-1229.206743,0.00014474,7]
[420462158,1776102644595,-988.76015652,0.00014486,2]
[420462159,1776102644625,-2418.38029037,0.00014486,2]
[420462160,1776102644637,-2153.01597039,0.00014486,2]
[420462161,1776102644662,-2383.45371966,0.00014486,2]